bitfinex-derivatives/quotes_BNBF0:USTF0_20250115
["timestamp","ask_amount","ask_price","bid_price","bid_amount"]
[1736905513065,1.05924236,701.11,700.84,0.77432801]
[1736905513262,0.2622497,701.1,699.68,1.05630517]
[1736905513466,0.2622497,701.1,699.7,0.28583678]
[1736905514467,1.05924236,701.08,699.74,1.05630517]
[1736905514661,0.2622497,701.07,699.74,1.05630517]
[1736905515061,0.26225194,701.06,699.75,0.28581636]
[1736905515362,0.26225194,701.05,699.75,0.28581636]
[1736905515562,0.26225389,701.04,699.75,0.28581636]
[1736905515766,1.05924236,701.09,699.75,0.28581636]
[1736905515967,0.26225108,701.08,699.75,0.28581636]
[1736905516362,0.26225108,701.07,699.75,0.28581636]
[1736905516567,0.26225108,701.06,699.75,0.28581636]
[1736905516768,1.05924236,701.11,699.75,0.28581636]
[1736905516968,0.2622521,701.1,699.75,0.28581636]
[1736905517163,0.2622521,701.09,699.75,0.28581636]
[1736905517368,0.2622521,701.08,699.75,0.28581636]
[1736905517567,0.2622521,701.07,699.75,0.28581636]
[1736905517767,0.28509522,701.52,699.75,0.28581636]
[1736905517768,1.05924236,701.13,699.75,0.28581636]
[1736905519069,1.05924236,701.31,699.75,0.28581636]
[1736905519274,0.2622596,701.3,699.75,0.28581636]
[1736905520568,1.05924236,701.32,699.75,0.28581636]
[1736905520770,0.2622565,701.31,699.75,0.28581636]
[1736905521369,1.05924236,701.32,699.75,0.28581636]
[1736905521571,0.26225503,701.31,699.75,0.28581636]
[1736905523173,1.05924236,701.34,699.75,0.28581636]
[1736905523373,0.26225197,701.33,699.75,0.28581636]
[1736905523579,1.05924236,701.34,699.75,0.28581636]
[1736905523779,0.26225663,701.33,699.75,0.28581636]
[1736905524183,1.05924236,701.35,699.75,0.28581636]
[1736905524478,0.26225469,701.34,699.75,0.28581636]
[1736905525275,1.05924236,701.41,699.75,0.28581636]
[1736905525480,0.54739864,701.4,699.75,0.28581636]
[1736905525677,0.54740271,701.39,699.75,0.28581636]
[1736905525880,0.26225465,701.38,699.75,0.28581636]
[1736905526484,0.28515619,701.37,699.75,0.28581636]
[1736905526679,0.26225669,701.36,699.75,0.28581636]
[1736905526884,0.28515619,701.37,699.75,0.28581636]
[1736905527783,0.26224636,701.36,699.75,0.28581636]
[1736905528379,0.28516432,701.35,699.75,0.28581636]
[1736905528583,0.26224636,701.34,699.75,0.28581636]
[1736905529184,0.28516432,701.35,699.75,0.28581636]
[1736905529483,0.26226001,701.33,699.75,0.28581636]
[1736905529984,0.26226001,701.32,699.75,0.28581636]
[1736905530184,0.26226001,701.34,699.75,0.28581636]
[1736905530587,1.32150237,701.34,699.75,0.28581636]
[1736905530776,0.26226001,701.33,699.75,0.28581636]
[1736905531285,1.05924236,701.34,699.75,0.28581636]
[1736905531885,0.28516432,701.35,699.75,0.28581636]
[1736905532583,0.28516432,701.35,699.75,1.01081636]
[1736905535285,0.26227186,701.34,699.75,1.01081636]
[1736905535587,0.26228228,701.33,699.75,1.01081636]
[1736905535788,0.28516432,701.35,699.75,1.01081636]
[1736905536087,0.26227656,701.34,699.75,1.01081636]
[1736905537390,1.32151892,701.34,699.75,1.01081636]
[1736905537590,1.05924236,701.34,699.75,1.01081636]
[1736905537887,0.54745756,701.33,699.75,1.01081636]
[1736905538081,1.05924236,701.34,699.75,1.01081636]
[1736905538082,0.54749225,701.32,699.75,1.01081636]
[1736905538287,0.26231573,701.31,699.75,1.01081636]
[1736905538487,0.28518465,701.3,699.75,1.01081636]
[1736905538687,0.26231573,701.29,699.75,1.01081636]
[1736905539590,0.28519685,701.27,699.75,1.01081636]
[1736905539791,0.26231573,701.26,699.75,1.01081636]
[1736905540286,1.05924236,701.03,699.75,1.01081636]
[1736905540785,0.28529856,701.02,699.75,1.01081636]
[1736905544087,0.26241098,701.01,699.75,0.725]
[1736905544293,0.2853067,701.0,699.75,0.725]
[1736905544487,0.26241098,700.99,699.75,0.725]
[1736905544693,0.28531484,700.98,699.75,0.725]
[1736905544893,0.26241098,700.97,699.75,0.725]
[1736905545088,0.28532298,700.96,699.75,0.725]
[1736905545392,0.26241098,700.95,699.75,0.725]
[1736905546195,0.28533112,700.94,699.75,0.725]
[1736905546493,0.26241098,700.93,699.75,0.725]
[1736905546887,0.26242068,700.92,699.75,0.725]
[1736905547085,0.26242006,700.91,699.75,0.725]
[1736905547288,0.28533112,700.94,699.75,0.725]
[1736905547289,0.26242006,700.9,699.75,0.725]
[1736905547494,0.28533112,700.94,699.75,0.725]
[1736905547794,0.2624203,700.93,699.75,0.725]
[1736905548188,0.28533926,700.92,699.75,0.725]
[1736905548495,0.2624203,700.91,699.75,0.725]
[1736905548696,0.28533926,700.92,699.75,0.725]
[1736905548896,0.28534741,700.9,699.75,0.725]
[1736905551598,0.26248509,700.89,699.75,0.725]
[1736905551797,0.28535555,700.88,699.75,0.725]
[1736905552096,0.26248451,700.87,699.75,0.725]
[1736905552291,0.28536369,700.86,699.75,0.725]
[1736905552495,0.26248451,700.85,699.75,0.725]
[1736905552794,0.28537183,700.84,699.75,0.725]
[1736905552991,0.26248451,700.83,699.75,0.725]
[1736905553296,0.28537998,700.82,699.75,0.725]
[1736905553497,0.26248451,700.81,699.75,0.725]
[1736905553692,0.28538812,700.8,699.75,0.725]
[1736905553895,0.26248451,700.79,699.75,0.725]
[1736905554695,0.26248785,700.78,699.75,0.725]
[1736905554891,0.28538812,700.8,699.75,0.725]
[1736905554892,0.26248785,700.77,699.75,0.725]
[1736905555093,0.28538812,700.8,699.75,0.725]
[1736905555094,0.26248785,700.76,699.75,0.725]
[1736905555297,0.26248785,700.75,699.75,0.725]
[1736905555498,0.26248785,700.74,699.75,0.725]
[1736905555698,0.54790448,700.73,699.75,0.725]
[1736905556000,0.54790856,700.72,699.75,0.725]
[1736905556202,0.54791263,700.71,699.75,0.725]
[1736905556396,0.28542885,700.7,699.75,0.725]
[1736905563902,1.05924236,701.38,699.75,0.725]
[1736905564107,0.28516026,701.36,699.75,0.725]
[1736905564307,0.26238436,701.35,699.75,0.725]
[1736905565009,0.26237927,701.34,699.75,0.725]
[1736905565210,0.26237927,701.33,699.75,0.725]
[1736905565407,0.26237927,701.32,699.75,0.725]
[1736905565710,0.26237927,701.31,699.75,0.725]
[1736905565906,0.26237927,701.3,699.75,0.725]
[1736905566108,0.26237927,701.29,699.75,0.725]
[1736905566310,0.26237927,701.28,699.75,0.725]
[1736905566512,0.28520092,701.26,699.75,0.725]
[1736905566811,0.26237927,701.25,699.75,0.725]
[1736905567610,0.54757273,701.24,699.75,0.725]
[1736905567806,0.26236368,701.23,699.75,0.725]
[1736905568110,0.28521719,701.22,699.75,0.725]
[1736905568309,0.26236368,701.21,699.75,0.725]
[1736905568511,0.54758929,701.2,699.75,0.725]
[1736905568711,0.26236397,701.19,699.75,0.725]
[1736905569910,0.26236397,701.19,699.76,0.28581227]
[1736905571013,0.2623171,701.18,699.76,0.28581227]
[1736905571213,0.2623171,701.17,699.76,1.34581227]
[1736905571413,0.2623171,701.16,699.76,1.34581227]
[1736905571711,0.28522532,701.2,699.76,1.34581227]
[1736905571911,0.2623063,701.19,699.76,1.34581227]
[1736905573513,0.28522532,701.2,699.76,1.34581227]
[1736905575309,0.26229291,701.19,699.76,1.34581227]
[1736905578120,0.26227569,701.18,699.76,1.34581227]
[1736905578619,0.26229291,701.19,699.76,1.34581227]
[1736905586826,0.28522532,701.2,699.76,1.34581227]
[1736905591325,0.2622709,701.19,699.76,1.34581227]
[1736905591930,0.26226903,701.18,699.76,1.34581227]
[1736905592131,0.2622664,701.17,699.76,1.34581227]
[1736905592325,0.28522532,701.2,699.76,1.34581227]
[1736905592326,0.26226291,701.16,699.76,1.34581227]
[1736905592530,0.26226291,701.15,699.76,1.34581227]
[1736905592728,0.28522532,701.2,699.76,1.34581227]
[1736905592930,0.26225907,701.19,699.76,1.34581227]
[1736905594133,0.26225771,701.18,699.76,1.34581227]
[1736905594434,0.26225771,701.17,699.76,1.34581227]
[1736905594729,0.28522532,701.2,699.76,1.34581227]
[1736905595034,0.26225734,701.19,699.76,1.34581227]
[1736905595831,0.28522532,701.2,699.76,1.34581227]
[1736905612148,1.05924236,701.16,699.76,1.34581227]
[1736905613242,0.28522532,701.2,699.76,1.34581227]
[1736905613243,1.05924236,701.19,699.76,1.34581227]
[1736905614249,0.28522532,701.2,699.77,1.05630517]
[1736905615550,0.28522532,701.2,699.77,1.82230517]
[1736905616353,0.28522532,701.2,699.78,1.05630517]
[1736905617756,0.28522532,701.2,699.8,1.05630517]
[1736905619057,0.28522532,701.2,699.79,1.05630517]
[1736905619949,0.28522532,701.2,699.8,1.05630517]
[1736905621054,0.28522532,701.2,699.77,0.766]
[1736905627150,0.28522532,701.2,699.81,1.05630517]
[1736905628551,0.28522532,701.2,699.77,0.766]
[1736905632357,0.26231569,701.19,699.77,0.766]
[1736905632760,0.28523346,701.18,699.77,0.766]
[1736905632961,0.26231569,701.17,699.77,0.766]
[1736905633259,0.2623441,701.16,699.77,0.766]
[1736905633451,0.2623441,701.15,699.77,0.766]
[1736905633655,1.05924236,701.05,699.77,0.766]
[1736905634659,0.28529042,701.04,699.77,0.766]
[1736905638165,0.26239061,701.03,699.77,0.766]
[1736905639168,1.05924236,701.0,699.77,0.766]
[1736905639367,0.26239061,700.99,699.77,0.766]
[1736905640362,0.26239061,700.98,699.77,0.766]
[1736905640568,0.26239061,700.97,699.77,0.766]
[1736905640766,0.26239089,700.96,699.77,0.766]
[1736905640968,0.26239089,700.95,699.77,0.766]
[1736905641169,0.26239089,700.94,699.77,0.766]
[1736905641370,0.26239089,701.0,699.77,0.766]
[1736905641570,0.28529042,701.04,699.77,0.766]
[1736905641571,1.05924236,701.03,699.77,0.766]
[1736905641966,0.28529856,701.02,699.77,0.766]
[1736905642564,0.262401,701.01,699.77,0.766]
[1736905642768,0.2853067,701.0,699.77,0.766]
[1736905642968,0.262401,700.99,699.77,0.766]
[1736905643168,0.28531484,700.98,699.77,0.766]
[1736905643566,0.26239389,700.97,699.77,0.766]
[1736905643772,0.28531484,700.98,699.77,0.766]
[1736905646069,0.26245187,700.97,699.77,0.766]
[1736905646374,0.28531484,700.98,699.77,0.766]
[1736905646569,0.26245224,700.97,699.77,0.766]
[1736905646774,0.26247115,700.96,699.77,0.766]
[1736905646971,0.26247115,700.95,699.77,0.766]
[1736905647276,0.28531484,700.98,699.77,0.766]
[1736905647573,0.26247527,700.97,699.77,0.766]
[1736905648368,0.28532705,700.95,699.77,0.766]
[1736905648574,0.26247527,700.94,699.77,0.766]
[1736905648874,0.52495832,700.93,699.77,0.766]
[1736905649074,0.26247959,700.92,699.77,0.766]
[1736905649674,0.26246512,700.91,699.77,0.766]
[1736905650077,0.26246512,700.9,699.77,0.766]
[1736905650369,0.26246512,700.92,699.77,0.766]
[1736905650575,0.26246512,700.91,699.77,0.766]
[1736905650776,0.26246512,700.9,699.77,0.766]
[1736905650975,0.28535148,700.89,699.77,0.766]
[1736905651479,0.26244149,700.88,699.77,0.766]
[1736905651874,0.28535962,700.87,699.77,0.766]
[1736905652278,0.26243645,700.86,699.77,0.766]
[1736905652475,0.28535962,700.87,699.77,0.766]
[1736905652675,0.2624352,700.86,699.77,0.766]
[1736905654382,0.28536776,700.85,699.77,0.766]
[1736905654677,0.2624352,700.84,699.77,0.766]
[1736905654880,0.28536776,700.85,699.77,0.766]
[1736905655078,0.28537591,700.83,699.77,0.766]
[1736905666782,0.26243377,700.82,699.77,0.766]
[1736905666988,0.28537591,700.83,699.77,0.766]
[1736905667992,0.26243349,700.82,699.77,0.766]
[1736905668292,0.28537591,700.83,699.77,0.766]
[1736905668493,0.26243513,700.82,699.77,0.766]
[1736905668797,0.28537591,700.83,699.77,0.766]
[1736905668987,0.26243805,700.82,699.77,0.766]
[1736905669388,0.28537591,700.83,699.77,0.766]
[1736905669991,0.26243518,700.82,699.77,0.766]
[1736905670994,0.26245287,700.81,699.77,0.766]
[1736905671192,0.26245287,700.8,699.77,0.766]
[1736905671387,0.26245287,700.82,699.77,0.766]
[1736905671586,0.26245287,700.81,699.77,0.766]
[1736905671789,0.28537591,700.83,699.77,0.766]
[1736905671790,0.26245287,700.8,699.77,0.766]
[1736905671993,0.26245287,700.79,699.77,0.766]
[1736905672290,0.26245287,700.78,699.77,0.766]
[1736905672493,0.26245287,700.77,699.77,0.766]
[1736905672691,1.32368476,700.76,699.77,0.766]
[1736905672891,0.26245287,700.75,699.77,0.766]
[1736905673697,0.26246216,700.74,699.77,0.766]
[1736905673891,0.26246216,700.73,699.77,0.766]
[1736905674097,0.26246216,700.72,699.77,0.766]
[1736905674297,0.26246216,700.71,699.77,0.766]
[1736905674596,1.06123189,700.77,699.77,0.766]
[1736905674798,0.54786895,700.76,699.77,0.766]
[1736905675096,0.26246454,700.75,699.77,0.766]
[1736905678798,0.28540441,700.76,699.77,0.766]
[1736905684412,0.2625013,700.75,699.77,0.766]
[1736905685109,0.28541256,700.74,699.77,0.766]
[1736905685307,0.2625013,700.73,699.77,0.766]
[1736905685508,1.32373319,700.73,699.77,0.766]
[1736905685809,0.2625013,700.72,699.77,0.766]
[1736905686010,0.26249213,700.71,699.77,0.766]
[1736905686205,1.06123189,700.73,699.77,0.766]
[1736905686402,0.28542071,700.72,699.77,0.766]
[1736905686607,0.26249124,700.71,699.77,0.766]
[1736905686804,0.28542885,700.7,699.77,0.766]
[1736905687910,0.26249622,700.69,699.77,0.766]
[1736905688113,0.285437,700.68,699.77,0.766]
[1736905693611,0.26251062,700.67,699.77,0.766]
[1736905694014,0.26249145,700.66,699.77,0.766]
[1736905694215,0.26249145,700.65,699.77,0.766]
[1736905694416,0.26249145,700.64,699.77,0.766]
[1736905694618,0.285437,700.68,699.77,0.766]
[1736905694619,0.26249145,700.63,699.77,0.766]
[1736905694910,0.26249145,700.62,699.77,0.766]
[1736905695110,0.26249145,700.61,699.77,0.766]
[1736905695310,0.26250397,700.6,699.77,0.766]
[1736905695513,0.26250397,700.59,699.77,0.766]
[1736905695715,0.26250397,700.58,699.77,0.766]
[1736905695916,0.26250397,700.57,699.77,0.766]
[1736905696116,1.06123189,700.67,699.77,0.766]
[1736905696416,0.54794666,700.66,699.77,0.766]
[1736905696619,1.06123189,700.63,699.77,0.766]
[1736905696817,0.26250151,700.62,699.77,0.766]
[1736905697717,1.06123189,700.65,699.77,0.766]
[1736905698421,0.28544515,700.66,699.77,0.766]
[1736905726838,0.26252616,700.65,699.77,0.766]
[1736905728439,0.28545329,700.64,699.77,0.766]
[1736905728638,0.26252616,700.63,699.77,0.766]
[1736905730943,0.28545329,700.64,699.77,0.766]
[1736905731139,0.26254105,700.63,699.77,0.766]
[1736905731344,0.28545329,700.64,699.77,0.766]
[1736905733346,0.26255261,700.63,699.77,0.766]
[1736905733547,0.28546144,700.62,699.77,0.766]
[1736905734050,0.26254986,700.61,699.77,0.766]
[1736905734250,0.28546959,700.6,699.77,0.766]
[1736905741156,0.26253442,700.59,699.77,0.766]
[1736905742058,0.28546959,700.6,699.77,0.766]
[1736905749462,0.26251509,700.59,699.77,0.766]
[1736905749866,0.28546959,700.6,699.77,0.766]
[1736905750069,0.26251509,700.59,699.77,0.766]
[1736905750664,0.28546959,700.6,699.77,0.766]
[1736905751968,0.26250968,700.59,699.77,0.766]
[1736905752461,0.28546959,700.6,699.77,0.766]
[1736905752766,0.26250933,700.59,699.77,0.766]
[1736905757567,1.32374122,700.59,699.77,0.766]
[1736905757772,0.26250933,700.58,699.77,0.766]
[1736905758772,1.32374122,700.58,699.77,0.766]
[1736905758972,0.26250933,700.57,699.77,0.766]
[1736905759875,1.06123189,700.53,699.77,0.766]
[1736905760074,0.26250933,700.52,699.77,0.766]
[1736905761970,1.32374122,700.52,699.77,0.766]
[1736905762170,1.06123189,700.52,699.77,0.766]
[1736905762373,0.26251909,700.51,699.77,0.766]
[1736905762975,1.06123189,700.52,699.77,0.766]
[1736905763175,1.3237439,700.51,699.77,0.766]
[1736905763472,1.06123189,700.51,699.77,0.766]
[1736905764077,1.06123189,700.56,699.77,0.766]
[1736905765275,1.06123189,700.57,699.77,0.766]
[1736905766076,0.26251848,700.56,699.77,0.766]
[1736905766476,1.32375037,700.56,699.77,0.766]
[1736905766675,0.26251848,700.55,699.77,0.766]
[1736905767180,1.06123189,700.56,699.77,0.766]
[1736905767884,1.06123189,700.59,699.77,0.766]
[1736905769086,1.06123189,700.57,699.77,0.766]
[1736905770182,1.06123189,700.56,699.77,0.766]
[1736905771181,0.28548997,700.55,699.77,0.766]
[1736905776888,0.26254772,700.54,699.77,0.766]
[1736905777091,0.28549812,700.53,699.77,0.766]
[1736905777393,0.26254772,700.52,699.77,0.766]
[1736905777793,0.28549812,700.53,699.77,0.766]
[1736905778097,1.06123189,700.47,699.77,0.766]
[1736905779097,0.28549812,700.53,699.77,0.766]
[1736905780795,0.26260573,700.52,699.77,0.766]
[1736905781999,0.28550627,700.51,699.77,0.766]
[1736905782199,0.26260573,700.5,699.77,0.766]
[1736905782397,1.06123189,700.43,699.77,0.766]
[1736905782890,0.28554295,700.42,699.77,0.766]
[1736905800910,0.26255089,700.41,699.77,0.766]
[1736905801105,0.28554295,700.42,699.77,0.766]
[1736905810216,0.26261167,700.41,699.77,0.766]
[1736905810417,0.28554295,700.42,699.77,0.766]
[1736905818726,0.26256079,700.41,699.77,0.766]
[1736905819429,1.06754037,700.4,699.77,0.766]
[1736905819830,0.26256097,700.39,699.77,0.766]
[1736905820330,1.06754037,700.36,699.77,0.766]
[1736905820531,0.26258086,700.35,699.77,0.766]
[1736905821425,1.06754037,700.28,699.77,0.766]
[1736905821628,0.26258086,700.27,699.77,0.766]
[1736905822630,1.06754037,700.26,699.77,0.766]
[1736905822828,0.2626048,700.25,699.77,0.766]
[1736905823329,1.06754037,700.26,699.77,0.766]
[1736905823525,1.06754037,700.25,699.77,0.766]
[1736905824328,1.06754037,700.27,699.77,0.766]
[1736905825231,0.26261241,700.26,699.77,0.766]
[1736905825731,0.26261241,700.25,699.77,0.766]
[1736905825932,1.06754037,700.29,699.77,0.766]
[1736905826128,0.26262085,700.28,699.77,0.766]
[1736905826329,1.06754037,700.25,699.77,0.766]
[1736905826633,0.26262085,700.24,699.77,0.766]
[1736905826927,1.06754037,700.25,699.77,0.766]
[1736905827531,1.06754037,700.23,699.77,0.766]
[1736905828931,0.28554295,700.42,699.77,0.766]
[1736905828932,1.06754037,700.28,699.77,0.766]
[1736905829354,0.26262959,700.27,699.77,0.766]
[1736905829552,1.06754037,700.28,699.77,0.766]
[1736905829945,0.26263064,700.27,699.77,0.766]
[1736905830138,0.28554295,700.42,699.77,0.766]
[1736905830139,1.06754037,700.3,699.77,0.766]
[1736905830429,0.26262873,700.29,699.77,0.766]
[1736905830631,1.06754037,700.3,699.77,0.766]
[1736905830835,0.26262873,700.29,699.77,0.766]
[1736905831431,0.26262873,700.28,699.77,0.766]
[1736905831632,0.26262873,700.27,699.77,0.766]
[1736905831829,1.06754037,700.32,699.77,0.766]
[1736905832038,0.54821785,700.31,699.77,0.766]
[1736905832336,0.26263004,700.3,699.77,0.766]
[1736905833331,0.28559596,700.29,699.77,0.766]
[1736905833534,0.26263806,700.28,699.77,0.766]
[1736905836238,0.28559596,700.29,699.77,0.766]
[1736905836429,0.26263678,700.28,699.77,0.766]
[1736905839039,0.26264008,700.27,699.77,0.766]
[1736905839231,0.26264008,700.26,699.77,0.766]
[1736905839433,0.28559596,700.29,699.77,0.766]
[1736905839732,0.26263277,700.28,699.77,0.766]
[1736905840234,0.28559596,700.29,699.77,0.766]
[1736905840833,0.28559596,700.29,698.82,1.06729467]
[1736905841436,1.06754037,700.15,698.44,1.06729467]
[1736905841840,1.06754037,700.15,698.45,0.28634834]
[1736905842436,1.06754037,700.15,698.45,1.12834834]
[1736905842843,0.28559596,700.29,698.45,1.12834834]
[1736905844949,0.26280485,700.28,698.45,1.12834834]
[1736905845444,0.28559596,700.29,698.45,1.12834834]
[1736905845645,0.26280681,700.28,698.45,1.12834834]
[1736905846347,1.06373229,700.21,698.45,1.12834834]
[1736905846545,0.26280681,700.2,698.45,1.12834834]
[1736905847341,1.06373229,700.14,698.45,1.12834834]
[1736905847545,0.26280681,700.13,698.45,1.12834834]
[1736905848748,0.26280681,700.12,698.45,1.12834834]
[1736905848946,0.26280681,700.16,698.45,1.12834834]
[1736905849146,0.26280681,700.15,698.45,1.12834834]
[1736905849548,0.26280681,700.14,698.45,1.12834834]
[1736905849749,0.26280681,700.13,698.45,1.12834834]
[1736905849948,0.26280681,700.12,698.45,1.12834834]
[1736905850148,0.26280681,700.17,698.45,1.12834834]
[1736905850348,0.26282071,700.16,698.45,1.12834834]
[1736905850566,0.26282071,700.15,698.45,1.12834834]
[1736905850748,0.28559596,700.29,698.45,1.12834834]
[1736905850749,0.26282071,700.14,698.45,1.12834834]
[1736905850948,0.26282071,700.13,698.45,1.12834834]
[1736905851149,0.26282071,700.12,698.45,1.12834834]
[1736905851452,0.26282071,700.11,698.45,1.12834834]
[1736905851653,0.26282071,700.1,698.45,1.12834834]
[1736905851852,0.26282071,700.09,698.45,1.12834834]
[1736905852052,0.26282071,700.08,698.45,1.12834834]
[1736905852350,0.26282071,700.07,698.45,1.12834834]
[1736905852552,0.28569387,700.05,698.45,1.12834834]
[1736905852853,0.26282071,700.04,698.45,1.12834834]
[1736905853053,0.26282624,700.03,698.45,1.12834834]
[1736905853255,0.54853236,700.02,698.45,1.12834834]
[1736905853551,0.28571428,700.0,698.45,1.12834834]
[1736905853956,0.26282423,699.99,698.45,1.12834834]
[1736905854654,0.28572244,699.98,698.45,1.12834834]
[1736905854856,0.26282423,699.97,698.45,1.12834834]
[1736905855249,0.28573061,699.96,698.45,1.12834834]
[1736905855451,0.26282423,699.95,698.45,1.12834834]
[1736905855652,0.28573877,699.94,698.45,1.12834834]
[1736905856050,0.26282887,699.93,698.45,1.12834834]
[1736905860355,0.26282887,699.92,698.45,1.12834834]
[1736905860756,0.26282887,699.91,698.45,1.12834834]
[1736905861058,0.26281911,699.9,698.45,1.12834834]
[1736905861256,0.28575919,699.89,698.45,1.12834834]
[1736905861456,0.26281911,699.88,698.45,1.12834834]
[1736905862253,0.28575919,699.89,698.45,1.12834834]
[1736905877166,1.06373229,700.56,698.45,1.12834834]
[1736905877367,0.28549404,700.54,698.45,1.12834834]
[1736905877666,0.26267466,700.53,698.45,1.12834834]
[1736905877867,0.28550627,700.51,698.45,1.12834834]
[1736905878069,1.06373229,700.43,698.45,1.12834834]
[1736905878367,0.54822153,700.42,698.45,1.12834834]
[1736905878667,0.54822561,700.41,698.45,1.12834834]
[1736905878963,1.61196198,700.4,698.47,1.06639005]
[1736905879166,0.26267858,700.39,698.47,1.06639005]
[1736905879567,0.26267858,700.39,698.49,0.28633194]
[1736905879768,0.28555926,700.38,698.49,0.28633194]
[1736905880469,0.28555926,700.38,698.49,1.35833194]
[1736905888268,0.28555926,700.38,698.5,2.56051282]
[1736905888469,0.28555926,700.38,698.51,2.56051282]
[1736905888773,0.28555926,700.38,698.55,1.06639005]
[1736905889875,0.28555926,700.38,698.53,1.06639005]
[1736905890474,0.28555926,700.38,698.55,0.28630735]
[1736905897074,0.28555926,700.38,698.56,2.55777571]
[1736905897275,0.28555926,700.38,698.57,2.55777571]
[1736905897474,0.28555926,700.38,698.59,0.28629095]
[1736905897674,0.28555926,700.38,698.75,1.06639005]
[1736905898474,0.28555926,700.38,698.77,0.28621721]
[1736905899378,0.26257176,700.37,698.77,0.28621721]
[1736905901785,0.28555926,700.38,698.77,0.28621721]
[1736905906588,0.28555926,700.38,698.77,0.98921721]
[1736905907187,0.28555926,700.38,698.83,1.06639005]
[1736905907685,0.28555926,700.38,698.85,0.28618444]
[1736905908390,0.28555926,700.38,698.9,1.06639005]
[1736905908689,0.28555926,700.38,698.92,0.28615578]
[1736905910183,0.26256144,700.37,698.92,0.28615578]
[1736905910384,0.52513352,700.37,698.92,0.28615578]
[1736905910589,0.26257208,700.36,698.92,0.28615578]
[1736905910785,0.26256144,700.37,698.92,0.28615578]
[1736905911087,0.26258817,700.36,698.92,0.28615578]
[1736905912386,1.06373229,700.35,698.92,0.28615578]
[1736905912687,0.26258817,700.34,698.92,0.28615578]
[1736905912993,0.26259586,700.33,698.92,0.28615578]
[1736905913195,0.26259586,700.32,698.92,0.28615578]
[1736905913390,0.26259586,700.31,698.92,0.28615578]
[1736905913593,0.26256144,700.37,698.92,0.28615578]
[1736905913793,0.26259666,700.36,698.92,0.28615578]
[1736905914397,1.32632895,700.36,698.92,0.28615578]
[1736905914594,0.26259666,700.35,698.92,0.28615578]
[1736905915296,1.06373229,700.31,698.92,0.28615578]
[1736905915796,0.26260492,700.3,698.92,0.28615578]
[1736905916896,0.26260492,700.29,698.92,0.28615578]
[1736905917094,0.26260492,700.28,698.92,0.28615578]
[1736905917294,1.06373229,700.32,698.92,0.28615578]
[1736905917495,0.26261514,700.31,698.92,0.28615578]
[1736905917897,1.06373229,700.3,698.92,0.28615578]
[1736905918091,0.26261514,700.29,698.92,0.28615578]
[1736905918295,1.06373229,700.3,698.92,0.28615578]
[1736905919097,1.06373229,700.31,698.93,1.06639005]
[1736905919298,0.26261313,700.3,698.93,1.06639005]
[1736905919993,0.26261918,700.29,698.93,1.06639005]
[1736905920196,0.26261918,700.28,698.94,1.06639005]
[1736905920498,0.26262705,700.27,698.94,1.06639005]
[1736905920692,1.06373229,700.32,698.94,1.06639005]
[1736905920895,0.26262349,700.31,698.94,1.06639005]
[1736905921197,0.26262349,700.31,698.92,0.28615578]
[1736905921198,1.06373229,700.31,698.92,0.28615578]
[1736905921591,1.06373229,700.31,698.92,1.41215578]
[1736905922098,1.06373229,700.35,698.92,1.41215578]
[1736905922698,0.2626101,700.34,698.92,1.41215578]
[1736905922896,1.06373229,700.35,698.92,1.41215578]
[1736905923096,0.26262204,700.34,698.92,1.41215578]
[1736905923399,1.06373229,700.36,698.92,1.41215578]
[1736905924199,0.28555926,700.38,698.92,1.41215578]
[1736905926500,0.28555926,700.38,699.04,1.06639005]
[1736905927303,0.28555926,700.38,699.05,0.28610256]
[1736905939909,0.28555926,700.38,699.05,1.14710256]
[1736905945807,1.34929155,700.38,699.05,1.14710256]
[1736905946810,0.28555926,700.38,699.05,1.14710256]
[1736905953715,0.28555926,700.38,699.05,2.21349261]
[1736905954812,0.28555926,700.38,699.05,1.14710256]
[1736905960323,0.28555926,700.38,699.17,1.06639005]
[1736905961221,0.28555926,700.38,699.18,0.28604937]
[1736905961422,0.28555926,700.38,699.18,1.35243942]
[1736905961626,0.28555926,700.38,699.18,2.39343942]
[1736905962124,0.28555926,700.38,699.18,1.32704937]
[1736905989048,0.26260686,700.37,699.18,1.32704937]
[1736905990544,0.28555926,700.38,699.18,1.32704937]